Workbook

Sheet Annual Yield
B3: Uncertainties | H3: To be calculated
B4: Year-to-year variability(Variance) | D4: 0 | H4: 99 | J4: ="P"&H4 -> P99 | K4: =_xlfn.NORM.INV(1-H4/100,$D$16,$D$12*$D$16) -> 791000.6196 | L4: MWh | M4: Specific yield | N4: =K4/$D$20 -> 1805.364552 | O4: MWh/MWp
B5: Climate change | D5: 0.025 | H5: 95 | J5: ="P"&H5 -> P95 | K5: =_xlfn.NORM.INV(1-H5/100,$D$16,$D$12*$D$16) -> 845633.6907 | L5: MWh | M5: Specific yield | N5: =K5/$D$20 -> 1930.05802 | O5: MWh/MWp
B6: PV module modelling/parameters | D6: 0.01 | H6: 90 | J6: P90 | K6: =_xlfn.NORM.INV(1-H6/100,$D$16,$D$12*$D$16) -> 874758.3788 | L6: MWh | M6: Specific yield | N6: =K6/$D$20 -> 1996.531646 | O6: MWh/MWp
B7: Inverter efficiency uncertainty | D7: 0.005 | H7: 75 | J7: P75 | K7: =_xlfn.NORM.INV(1-H7/100,$D$16,$D$12*$D$16) -> 923424.4555 | L7: MWh | M7: Specific yield | N7: =K7/$D$20 -> 2107.60616 | O7: MWh/MWp
B8: Soiling and mismatch uncertainties | D8: 0.01 | H8: 50 | J8: P50 | K8: 977496 | L8: MWh | M8: Specific yield | N8: =K8/$D$20 -> 2231.01801 | O8: MWh/MWp
B9: Degradation uncertainty | D9: 0.01 | H9: 25 | J9: P25 | K9: 1031567.544 | L9: MWh | M9: Specific yield | N9: =K9/$D$20 -> 2354.42986 | O9: MWh/MWp
B10: Other | D10: 0.076 | H10: 10 | J10: P10 | K10: 1080233.621 | L10: MWh | M10: Specific yield | N10: =K10/$D$20 -> 2465.504375 | O10: MWh/MWp
H11: 5 | J11: P5 | K11: 1109358.309 | L11: MWh | M11: Specific yield | N11: =K11/$D$20 -> 2531.978001 | O11: MWh/MWp
B12: Global variability (meteo + system) | D12: =SQRT((D4^2)+(D5^2)+(D6^2)+(D7^2)+(D8^2)+(D9^2)+(D10^2)) -> 0.08201219422 | H12: 1 | J12: P1 | K12: 1163991.38 | L12: MWh | M12: Specific yield | N12: =K12/$D$20 -> 2656.671468 | O12: MWh/MWp
Q13: =K13 -> 0
B15: Annual Generation Y1
B16: P50 | D16: 977496 | E16: MWh
B17: Std Dev | D17: =D16*D12 -> 80166.5918
J18: Lower Limit | K18: =_xlfn.NORM.INV(1-99/100,$D$16,$D$12*$D$16) -> 791000.6196
J19: Upper limit | K19: =_xlfn.NORM.INV(1-1/100,$D$16,$D$12*$D$16) -> 1163991.38
B20: System Size | D20: 438.139 | E20: MWp | J20: Steps | K20: 5
B21: Specific Yield | D21: =D16/$D$20 -> 2231.01801 | E21: MWh/MWp | J21: Delta | K21: =(K19-K18)/K20 -> 74598.15216
K24: Prob
I25: 1 | J25: =K18 -> 791000.6196 | K25: =L25 -> 0.01 | L25: =IF(J25<>"-",_xlfn.NORM.DIST(J25,$D$16,$D$16*$D$12,1),"-") -> 0.01
I26: 2 | J26: =IF(I26<=$K$20+1,J25+$K$21,NA()) -> 865598.7718 | K26: =IF(I26<=$K$20+1,L26-L25) -> 0.07138605123 | L26: 0.08138605123
I27: 3 | J27: =IF(I27<=$K$20+1,J26+$K$21,NA()) -> 940196.9239 | K27: =IF(I27<=$K$20+1,L27-L26) -> 0.2394831588 | L27: 0.32086921
I28: 4 | J28: 1014795.076 | K28: 0.3582615799 | L28: 0.67913079
I29: 5 | J29: 1089393.228 | K29: 0.2394831588 | L29: 0.9186139488
I30: 6 | J30: 1163991.38 | K30: 0.07138605123 | L30: 0.99
I31: 7 | K31: FALSE
I32: 8 | K32: FALSE
I33: 9 | K33: FALSE
I34: 10 | K34: FALSE
I35: 11 | K35: FALSE
I36: 12 | K36: FALSE
I37: 13 | K37: FALSE
I38: 14 | K38: FALSE
I39: 15 | K39: FALSE
I40: 16 | K40: FALSE
I41: 17 | K41: FALSE
I42: 18 | K42: FALSE
I43: 19 | K43: FALSE
I44: 20 | K44: FALSE
I45: 21 | K45: FALSE
I46: 22 | K46: FALSE
I47: 23 | K47: =IF(I47<=$K$20+1,L47-L46) -> FALSE | L47: =IF(J47<>"-",_xlfn.NORM.DIST(J47,$D$16,$D$16*$D$12,1),"-") -> 
I48: 24 | K48: FALSE
I49: 25 | K49: FALSE
I50: 26 | K50: FALSE
I51: 27 | K51: FALSE
I52: 28 | K52: FALSE
K54: =SUM(K26:K52) -> 0.98
D58: =NORMINV(0.001,$D$16,$D$17) -> 729762.6082 | E58: =ROUNDDOWN(D58,-5) -> 700000 | F58: min
D59: =NORMINV(0.999,$D$16,$D$17) -> 1225229.392 | E59: =ROUNDUP(D59,-5) -> 1300000 | F59: max | M59: p
D64: Mean | E64: =D16 -> 977496
D65: Std Dev | E65: =D17 -> 80166.5918
D66: =(max-min)/99 -> 6060.606061
E68: Probability Distribution
C69: =E69 -> 7.545746654e-05 | D69: =min -> 700000 | E69: =_xlfn.NORM.DIST(D69,$E$64,$E$65,0)/$E$172 -> 7.545746654e-05
C70: =C69+E70 -> 0.0001732062482 | D70: =D69+$D$66 -> 706060.6061 | E70: =_xlfn.NORM.DIST(D70,$E$64,$E$65,0)/$E$172 -> 9.774878171e-05 | F70: =E70 -> 9.774878171e-05 | G70: P99
C71: =C70+E71 -> 0.0002991099003 | D71: =D70+$D$66 -> 712121.2121 | E71: 0.0001259036521
C72: 0.0004603537445 | D72: 718181.8182 | E72: 0.0001612438441
C73: 0.0006656806208 | D73: 724242.4242 | E73: 0.0002053268763
C74: 0.0009256524547 | D74: 730303.0303 | E74: 0.000259971834
C75: 0.001252936351 | D75: 736363.6364 | E75: 0.0003272838963
C76: 0.001662612629 | D76: 742424.2424 | E76: 0.0004096762776
C77: 0.002172500684 | D77: 748484.8485 | E77: 0.0005098880549
C78: 0.00280349682 | D78: 754545.4545 | E78: 0.0006309961364
C79: 0.003579916265 | D79: 760606.0606 | E79: 0.0007764194446
C80: 0.004529829519 | D80: 766666.6667 | E80: 0.0009499132546
C81: 0.005685381092 | D81: 772727.2727 | E81: 0.001155551573
C82: 0.007083076568 | D82: 778787.8788 | E82: 0.001397695476
C83: 0.008764022046 | D83: 784848.4848 | E83: 0.001680945478
C84: 0.01077409831 | D84: 790909.0909 | E84: 0.002010076267
C85: 0.0131640509 | D85: 796969.697 | E85: 0.002389952589
C86: 0.01598947651 | D86: 803030.303 | E86: 0.002825425605
C87: 0.01931068629 | D87: 809090.9091 | E87: 0.003321209783
C88: 0.02319242753 | D88: 815151.5152 | E88: 0.003881741239
C89: 0.02770344694 | D89: 821212.1212 | E89: 0.004511019409
C90: 0.03291588192 | D90: 827272.7273 | E90: 0.005212434983
C91: 0.03890447008 | D91: 833333.3333 | E91: 0.005988588158
C92: 0.04574557238 | D92: 839393.9394 | E92: 0.006841102297
C93: 0.05351601151 | D93: 845454.5455 | E93: 0.007770439137
C94: 0.06229173403 | D94: 851515.1515 | E94: 0.008775722518
C95: 0.07214631231 | D95: 857575.7576 | E95: 0.009854578274
C96: 0.08314931059 | D96: 863636.3636 | E96: 0.01100299828
C97: 0.09536454732 | D97: 869696.9697 | E97: 0.01221523673
C98: 0.1088482936 | D98: 875757.5758 | E98: 0.01348374628
C99: 0.1236474547 | D99: 881818.1818 | E99: 0.01479916107
C100: 0.139797787 | D100: 887878.7879 | E100: 0.01615033232
C101: 0.1573222077 | D101: 893939.3939 | E101: 0.01752442069
C102: 0.1762292553 | D102: 900000 | E102: 0.01890704765
C103: 0.1965117611 | D103: 906060.6061 | E103: 0.02028250576
C104: 0.2181457867 | D104: 912121.2121 | E104: 0.02163402556
C105: 0.2410898805 | D105: 918181.8182 | E105: 0.02294409383
C106: 0.2652846964 | D106: 924242.4242 | E106: 0.02419481595
C107: 0.2906530088 | D107: 930303.0303 | E107: 0.02536831236
C108: 0.3171001462 | D108: 936363.6364 | E108: 0.02644713739
C109: 0.3445148531 | D109: 942424.2424 | E109: 0.02741470691
C110: 0.3727705735 | D110: 948484.8485 | E110: 0.02825572039
C111: 0.4017271358 | D111: 954545.4545 | E111: 0.02895656236
C112: 0.4312328045 | D112: 960606.0606 | E112: 0.02950566869
C113: 0.4611266484 | D113: 966666.6667 | E113: 0.02989384386
C114: 0.4912411655 | D114: 972727.2727 | E114: 0.03011451708 | F114: =E114 -> 0.03011451708 | G114: P50
C115: 0.5214050928 | D115: 978787.8788 | E115: 0.03016392732
C116: 0.5514463227 | D116: 984848.4848 | E116: 0.03004122992
C117: 0.5811948434 | D117: 990909.0909 | E117: 0.02974852066
C118: 0.6104856195 | D118: 996969.697 | E118: 0.02929077613
C119: 0.6391613326 | D119: 1003030.303 | E119: 0.02867571309
C120: 0.6670749045 | D120: 1009090.909 | E120: 0.02791357195
C121: 0.6940917378 | D121: 1015151.515 | E121: 0.02701683331
C122: 0.720091616 | D122: 1021212.121 | E122: 0.0259998782
C123: 0.744970221 | D123: 1027272.727 | E123: 0.02487860499
C124: 0.7686402384 | D124: 1033333.333 | E124: 0.02367001738
C125: 0.7910320365 | D125: 1039393.939 | E125: 0.02239179813
C126: 0.81209392 | D126: 1045454.545 | E126: 0.02106188342
C127: 0.831791972 | D127: 1051515.152 | E127: 0.01969805203
C128: 0.850109514 | D128: 1057575.758 | E128: 0.01831754203
C129: 0.8670462202 | D129: 1063636.364 | E129: 0.01693670622
C130: 0.8826169352 | D130: 1069696.97 | E130: 0.01557071492
C131: 0.8968502479 | D131: 1075757.576 | E131: 0.01423331278
C132: 0.9097868814 | D132: 1081818.182 | E132: 0.01293663349
C133: 0.9214779551 | D133: 1087878.788 | E133: 0.01169107364
C134: 0.9319831801 | D134: 1093939.394 | E134: =_xlfn.NORM.DIST(D134,$E$64,$E$65,0)/$E$172 -> 0.01050522502
C135: =C134+E135 -> 0.9413690421 | D135: =D134+$D$66 -> 1100000 | E135: 0.009385861982
C136: 0.9497070213 | D136: 1106060.606 | E136: 0.008337979231
C137: 0.9570718949 | D137: 1112121.212 | E137: 0.007364873562
C138: 0.9635401572 | D138: 1118181.818 | E138: 0.006468262298
C139: 0.9691885877 | D139: 1124242.424 | E139: 0.005648430527
C140: 0.9740929868 | D140: 1130303.03 | E140: 0.004904399068
C141: 0.978327092 | D141: 1136363.636 | E141: 0.004234105276
C142: 0.9819616813 | D142: 1142424.242 | E142: 0.003634589301
C143: 0.9850638605 | D143: 1148484.848 | E143: 0.003102179166
C144: 0.9876965295 | D144: 1154545.455 | E144: 0.002632668947
C145: 0.9899180149 | D145: 1160606.061 | E145: 0.002221485414
C146: 0.9917818544 | D146: 1166666.667 | E146: 0.001863839547
C147: 0.9933367149 | D147: 1172727.273 | E147: 0.00155486046
C148: 0.9946264252 | D148: 1178787.879 | E148: 0.00128971027
C149: 0.9956901045 | D149: 1184848.485 | E149: 0.001063679373
C150: 0.9965623669 | D150: 1190909.091 | E150: 0.0008722624121
C151: 0.9972735828 | D151: 1196969.697 | E151: 0.0007112158387
C152: 0.9978501813 | D152: 1203030.303 | E152: 0.0005765985189
C153: 0.9983149785 | D153: 1209090.909 | E153: 0.0004647971607
C154: 0.998687517 | D154: 1215151.515 | E154: 0.000372538577
C155: 0.9989844079 | D155: 1221212.121 | E155: 0.0002968908939
C156: 0.9992196637 | D156: 1227272.727 | E156: 0.0002352558028
C157: 0.9994050176 | D157: 1233333.333 | E157: 0.0001853538677
C158: 0.9995502223 | D158: 1239393.939 | E158: 0.0001452047428
C159: 0.9996633263 | D159: 1245454.545 | E159: 0.0001131039552
C160: 0.999750924 | D160: 1251515.152 | E160: 8.759768398e-05
C161: 0.9998183807 | D161: 1257575.758 | E161: 6.745673182e-05
C162: 0.9998700314 | D162: 1263636.364 | E162: 5.165065224e-05
C163: 0.9999093541 | D163: 1269696.97 | E163: 3.932277559e-05
C164: 0.9999391208 | D164: 1275757.576 | E164: 2.976667739e-05
C165: 0.9999615253 | D165: 1281818.182 | E165: 2.24044557e-05
C166: 0.9999782923 | D166: 1287878.788 | E166: 1.676703518e-05
C167: 0.9999907689 | D167: 1293939.394 | E167: 1.247659261e-05
C168: 1 | D168: 1300000 | E168: 9.231102109e-06
E171: =SUM(E69:E170) -> 1
E172: 0.0001649576149
